fUSD/lending_fUSD_20250926
["ID","MTS","AMOUNT","RATE_DAILY","PERIOD"]
[387806117,1758883855049,-273.743063,0.00022464,7]
[387806118,1758883855060,-558.0,0.00022465,2]
[387806119,1758883855069,-2595.0,0.00022465,2]
[387806120,1758883855079,-1963.0,0.00022465,2]
[387806121,1758883855088,-326.10705892,0.00022465,2]
[387806122,1758883855098,-571.0,0.00022465,2]
[387806123,1758883855107,-500.0,0.00022465,2]
[387806124,1758883855116,-2429.77,0.00022465,2]
[387806125,1758883855315,-151.0,0.00022466,2]
[387806126,1758883855325,-500.0,0.00022473,2]
[387806127,1758883855334,-588.14446149,0.00022473,2]
[387806128,1758883855344,-501.63936581,0.00022473,2]
[387806129,1758883855353,-500.0,0.00022473,2]
[387806130,1758883855362,-500.0,0.00022473,2]
[387806131,1758883855371,-500.6639251,0.00022473,2]
[387806132,1758883855381,-500.45858147,0.00022473,2]
[387806133,1758883855390,-500.0,0.00022473,2]
[387806134,1758883855399,-34936.47548953,0.000225,2]
[387806135,1758883855409,-516.91207795,0.000225,7]
[387806136,1758883855419,-1000.0,0.00022521,2]
[387806137,1758883855429,-1000.0,0.00022521,2]
[387806138,1758883855439,-1000.0,0.00022521,2]
[387806139,1758883855448,-1000.0,0.00022521,2]
[387806140,1758883855457,-1000.0,0.00022521,2]
[387806141,1758883855467,-1000.0,0.00022521,2]
[387806142,1758883855476,-1000.0,0.00022521,2]
[387806143,1758883855487,-500.0,0.00022521,2]
[387806144,1758883855496,-501.31210207,0.00022521,2]
[387806145,1758883855505,-1000.0,0.00022521,2]
[387806146,1758883855515,-1000.0,0.00022521,2]
[387806147,1758883855526,-1000.0,0.00022521,2]
[387806148,1758883855535,-1000.0,0.00022521,2]
[387806149,1758883855546,-1000.0,0.00022521,2]
[387806150,1758883855556,-1000.0,0.00022521,2]
[387806151,1758883855565,-1000.0,0.00022521,2]
[387806152,1758883855574,-1000.0,0.00022521,2]
[387806153,1758883855584,-162.10988516,0.00022521,2]
[387806154,1758883855593,-317.14652482,0.00022521,2]
[387806155,1758883855603,-250.0,0.00022521,2]
[387806156,1758883855612,-1000.0,0.00022521,2]
[387806157,1758883855621,-182.04,0.00022555,2]
[387806158,1758883855631,-1000.0,0.0002256,2]
[387806159,1758883855640,-600.0,0.00022658,2]
[387806160,1758883855650,-2351.0,0.00022698,2]
[387806161,1758883855663,-514.90362194,0.0002271,2]
[387806162,1758883855673,-3000.0,0.00022712,2]
[387806163,1758883855682,-3000.0,0.00022712,2]
[387806164,1758883855692,-2463.29813736,0.00022712,2]
[387806165,1758883855701,-558.0,0.00022739,2]
[387806166,1758883855710,-2595.0,0.00022739,2]
[387806167,1758883855719,-1963.0,0.00022739,2]
[387806168,1758883855729,-571.0,0.00022739,2]
[387806169,1758883855739,-350.0,0.00022739,2]
[387806170,1758883855749,-378.89,0.00022739,2]
[387806171,1758883855758,-2429.77,0.00022739,2]
[387806172,1758883855767,-3286.01240646,0.00022855,2]
[387806173,1758883855778,-19627.87,0.000229,2]
[387806174,1758883855787,-4016.02,0.000229,2]
[387806175,1758883855796,-3396.0,0.00022911,2]
[387806176,1758883855806,-787.0,0.00022911,2]
[387806177,1758883855815,-2043.0,0.00022911,2]
[387806178,1758883855824,-569.0,0.00022911,2]
[387806179,1758883855834,-1583.0,0.00022911,2]
[387806180,1758883855844,-1305.0,0.00022911,2]
[387806181,1758883855854,-603.0,0.00022911,2]
[387806182,1758883855864,-814.0,0.00022911,2]
[387806183,1758883855873,-4179.0,0.00022911,2]
[387806184,1758883855882,-6228.0,0.00022911,2]
[387806185,1758883855891,-728.0,0.00022911,2]
[387806186,1758883855900,-18905.0,0.00022911,2]
[387806187,1758883855910,-885.19969578,0.0002297,2]
[387806188,1758883855920,-700.0,0.0002297,2]
[387806189,1758883855930,-262.50779157,0.00023,5]
[387806190,1758883855940,-1000.0,0.00023,14]
[387806191,1758883855950,-165.0,0.00023,5]
[387806192,1758883855959,-3392.66064561,0.00023,3]
[387806193,1758883855969,-432.97703911,0.00023,2]
[387806194,1758883855978,-991.85439827,0.00023,2]
[387806195,1758883855988,-624.01709002,0.00023,7]
[387806196,1758883855997,-394.6287,0.00023,2]
[387806197,1758883856007,-1314.3263,0.00023,2]
[387806198,1758883856017,-513.7657,0.00023,2]
[387806199,1758883856026,-166.0,0.00023,7]
[387806200,1758883856036,-1332.685,0.00023,2]
[387806201,1758883856046,-180.3419582,0.00023002,8]
[387806202,1758883856055,-458.23,0.00023003,2]
[387806203,1758883856065,-558.0,0.00023013,2]
[387806204,1758883856075,-2595.0,0.00023013,2]
[387806205,1758883856084,-1963.0,0.00023013,2]
[387806206,1758883856094,-571.0,0.00023013,2]
[387806207,1758883856104,-400.0,0.00023014,2]
[387806208,1758883856114,-152.0,0.00023014,2]
[387806209,1758883856123,-1000.4132284,0.00023021,2]
[387806210,1758883856133,-1000.61687565,0.00023021,2]
[387806211,1758883856143,-197.65761477,0.00023021,2]
[387806212,1758883856153,-1000.0,0.00023021,2]
[387806213,1758883856164,-1000.0,0.00023068,2]
[387806214,1758883856173,-1249.13979582,0.00023068,2]
[387806215,1758883856184,-1500.0,0.00023068,2]
[387806216,1758883856194,-713.11460451,0.00023068,2]
[387806217,1758883856204,-1500.0,0.00023068,2]
[387806218,1758883856213,-1500.0,0.00023068,2]
[387806219,1758883856223,-1002.03617186,0.00023068,2]
[387806220,1758883856234,-1436.77809542,0.00023068,2]
[387806221,1758883856244,-1504.79872483,0.00023068,2]
[387806222,1758883856254,-1500.0,0.00023068,2]
[387806223,1758883856264,-1115.40049051,0.00023068,2]
[387806224,1758883856273,-483.51483674,0.00023068,2]
[387806225,1758883856283,-1000.66166581,0.00023068,2]
[387806226,1758883856293,-500.0,0.00023068,2]
[387806227,1758883856303,-1500.0,0.00023068,2]
[387806228,1758883856313,-500.0,0.00023068,2]
[387806229,1758883856323,-1435.8773787,0.00023068,2]
[387806230,1758883856333,-2545.43393073,0.000231,2]
[387806231,1758883856343,-51354.27130256,0.000232,2]
[387806232,1758883856353,-600.0,0.00023206,2]
[387806233,1758883856363,-359.76179104,0.00023237,2]
[387806234,1758883856372,-661.49472971,0.0002326,2]
[387806235,1758883856382,-3500.0,0.0002326,2]
[387806236,1758883856392,-500.0,0.00023263,2]
[387806237,1758883856401,-558.0,0.00023287,2]
[387806238,1758883856411,-2595.0,0.00023287,2]
[387806239,1758883856422,-1963.0,0.00023287,2]
[387806240,1758883856432,-571.0,0.00023287,2]
[387806241,1758883856441,-378.89,0.00023287,2]
[387806242,1758883856451,-151.0,0.00023288,7]
[387806243,1758883856460,-151.0,0.00023288,7]
[387806244,1758883856471,-447.81563,0.00023288,7]
[387806245,1758883856480,-447.81563,0.00023288,7]
[387806246,1758883856490,-447.81563,0.00023288,7]
[387806247,1758883856499,-447.81563,0.00023288,7]
[387806248,1758883856509,-36080.46,0.000233,7]
[387806249,1758883856518,-169.07053325,0.00023333,7]
[387806250,1758883856528,-1000.0,0.00023347,2]
[387806251,1758883856537,-36038.95,0.000234,2]
[387806252,1758883856547,-150.0,0.00023417,2]
[387806253,1758883856556,-259.4789694,0.00023418,2]
[387806254,1758883856566,-330.70849041,0.0002342,2]
[387806255,1758883856575,-401.93801142,0.00023421,2]
[387806256,1758883856585,-473.16753244,0.00023423,2]
[387806257,1758883856594,-544.39705345,0.00023424,2]
[387806258,1758883856604,-615.62657446,0.00023426,2]
[387806259,1758883856614,-686.85609547,0.00023427,2]
[387806260,1758883856625,-758.08561648,0.00023429,2]
[387806261,1758883856634,-829.3151375,0.0002343,2]
[387806262,1758883856645,-542991.0,0.0002344,2]
[387806263,1758883856654,-151.0,0.0002344,7]
[387806264,1758883856668,-151.0,0.0002344,7]
[387806265,1758883856677,-176.026076,0.0002344,7]
[387806266,1758883856686,-151.0,0.0002344,7]
[387806267,1758883856696,-176.026076,0.0002344,7]
[387806268,1758883856706,-151.0,0.0002344,7]
[387806269,1758883856715,-151.0,0.0002344,7]
[387806270,1758883856724,-163.627697,0.0002344,7]
[387806271,1758883856736,-151.0,0.0002344,7]
[387806272,1758883856747,-151.0,0.0002344,7]
[387806273,1758883856756,-163.627697,0.0002344,7]
[387806274,1758883856765,-151.0,0.0002344,7]
[387806275,1758883856774,-163.627697,0.0002344,7]
[387806276,1758883856783,-151.0,0.0002344,7]
[387806277,1758883856793,-151.0,0.0002344,7]
[387806278,1758883856803,-163.627697,0.0002344,7]
[387806279,1758883856812,-151.0,0.0002344,7]
[387806280,1758883856822,-161.516152,0.0002344,7]
[387806281,1758883856832,-261.0,0.0002344,5]
[387806282,1758883856841,-151.0,0.0002344,7]
[387806283,1758883856851,-156.700664,0.0002344,7]
[387806284,1758883856861,-151.0,0.0002344,7]
[387806285,1758883856870,-151.0,0.0002344,7]
[387806286,1758883856880,-151.0,0.0002344,7]
[387806287,1758883856889,-156.168384,0.0002344,7]
[387806288,1758883856899,-151.0,0.0002344,7]
[387806289,1758883856908,-151.0,0.0002344,7]
[387806290,1758883856918,-151.0,0.0002344,7]
[387806291,1758883856928,-151.0,0.0002344,7]
[387806292,1758883856937,-151.0,0.0002344,7]
[387806293,1758883856947,-151.0,0.0002344,7]
[387806294,1758883856956,-208.10947,0.0002344,7]
[387806295,1758883856966,-151.0,0.0002344,7]
[387806296,1758883856976,-151.0,0.0002344,7]
[387806297,1758883856985,-151.0,0.0002344,7]
[387806298,1758883856996,-151.0,0.0002344,7]
[387806299,1758883857006,-151.0,0.0002344,7]
[387806300,1758883857015,-151.0,0.0002344,7]
[387806301,1758883857024,-151.0,0.0002344,7]
[387806302,1758883857034,-151.0,0.0002344,7]
[387806303,1758883857043,-151.0,0.0002344,7]
[387806304,1758883857052,-151.0,0.0002344,7]
[387806305,1758883857063,-151.0,0.0002344,7]
[387806306,1758883857072,-299.100666,0.0002344,7]
[387806307,1758883857082,-151.0,0.0002344,7]
[387806308,1758883857092,-825.733351,0.0002344,7]
[387806309,1758883857102,-825.733351,0.0002344,7]
[387806310,1758883857112,-825.733351,0.0002344,7]
[387806311,1758883857121,-825.733351,0.0002344,7]
[387806312,1758883857131,-151.0,0.0002344,7]
[387806313,1758883857141,-151.0,0.0002344,7]
[387806314,1758883857150,-196.138863,0.0002344,7]
[387806315,1758883857160,-151.0,0.0002344,7]
[387806316,1758883857170,-196.138863,0.0002344,7]
[387806317,1758883857179,-196.138863,0.0002344,7]
[387806318,1758883857189,-196.138863,0.0002344,7]
[387806319,1758883857198,-385.417916,0.0002344,7]
[387806320,1758883857207,-385.417916,0.0002344,7]
[387806321,1758883857217,-385.417916,0.0002344,7]
[387806322,1758883857226,-354.445556,0.0002344,7]
[387806323,1758883857236,-385.417916,0.0002344,7]
[387806324,1758883857246,-354.445556,0.0002344,7]
[387806325,1758883857256,-354.445556,0.0002344,7]
[387806326,1758883857265,-354.445556,0.0002344,7]
[387806327,1758883857275,-357.672745,0.0002344,7]
[387806328,1758883857284,-357.672745,0.0002344,7]
[387806329,1758883857293,-357.672745,0.0002344,7]
[387806330,1758883857302,-357.672745,0.0002344,7]
[387806331,1758883857311,-287.065281,0.0002344,7]
[387806332,1758883857321,-516.297786,0.0002344,7]
[387806333,1758883857330,-516.297786,0.0002344,7]
[387806334,1758883857339,-516.297786,0.0002344,7]
[387806335,1758883857348,-516.297786,0.0002344,7]
[387806336,1758883857358,-223.384518,0.0002344,7]
[387806337,1758883857367,-235.534834,0.0002344,7]
[387806338,1758883857377,-235.534834,0.0002344,7]
[387806339,1758883857388,-235.534834,0.0002344,7]
[387806340,1758883857397,-235.534834,0.0002344,7]
[387806341,1758883857406,-1241.122967,0.0002344,7]
[387806342,1758883857417,-1241.122967,0.0002344,7]
[387806343,1758883857427,-411.234288,0.0002344,7]
[387806344,1758883857437,-178.333038,0.0002344,7]
[387806345,1758883857447,-1241.122967,0.0002344,7]
[387806346,1758883857456,-411.234288,0.0002344,7]
[387806347,1758883857467,-1241.122967,0.0002344,7]
[387806348,1758883857477,-411.234288,0.0002344,7]
[387806349,1758883857487,-221.653097,0.0002344,7]
[387806350,1758883857497,-411.234288,0.0002344,7]
[387806351,1758883857507,-221.653097,0.0002344,7]
[387806352,1758883857516,-221.653097,0.0002344,7]
[387806353,1758883857526,-221.653097,0.0002344,7]
[387806354,1758883857535,-151.0,0.0002344,7]
[387806355,1758883857545,-259.742169,0.0002344,7]
[387806356,1758883857554,-259.742169,0.0002344,7]
[387806357,1758883857564,-259.742169,0.0002344,7]
[387806358,1758883857573,-259.742169,0.0002344,7]
[387806359,1758883857583,-151.0,0.0002344,7]
[387806360,1758883857592,-151.0,0.0002344,7]
[387806361,1758883857601,-151.0,0.0002344,7]
[387806362,1758883857610,-151.0,0.0002344,7]
[387806363,1758883857620,-151.0,0.0002344,7]
[387806364,1758883857629,-190.094068,0.0002344,7]
[387806365,1758883857639,-151.0,0.0002344,7]
[387806366,1758883857648,-151.0,0.0002344,7]
[387806367,1758883857659,-151.0,0.0002344,7]
[387806368,1758883857674,-151.0,0.0002344,7]
[387806369,1758883857683,-151.0,0.0002344,7]
[387806370,1758883857693,-151.0,0.0002344,7]
[387806371,1758883857703,-151.0,0.0002344,7]
[387806372,1758883857712,-151.0,0.0002344,7]
[387806373,1758883857721,-151.0,0.0002344,7]
[387806374,1758883857730,-177.135424,0.0002344,7]
[387806375,1758883857740,-151.0,0.0002344,7]
[387806376,1758883857748,-228.467041,0.0002344,7]
[387806377,1758883857758,-151.0,0.0002344,7]
[387806378,1758883857767,-228.467041,0.0002344,7]
[387806379,1758883857776,-151.0,0.0002344,7]
[387806380,1758883857785,-228.467041,0.0002344,7]
[387806381,1758883857795,-244.655226,0.0002344,7]
[387806382,1758883857804,-228.467041,0.0002344,7]
[387806383,1758883857813,-151.0,0.0002344,7]
[387806384,1758883857822,-151.0,0.0002344,7]
[387806385,1758883857832,-151.0,0.0002344,7]
[387806386,1758883857841,-151.0,0.0002344,7]
[387806387,1758883857850,-151.0,0.0002344,7]
[387806388,1758883857860,-159.040653,0.0002344,7]
[387806389,1758883857869,-151.0,0.0002344,7]
[387806390,1758883857879,-151.0,0.0002344,7]
[387806391,1758883857889,-151.0,0.0002344,7]
[387806392,1758883857898,-151.0,0.0002344,7]
[387806393,1758883857907,-155.305101,0.0002344,7]
[387806394,1758883857916,-198.226051,0.0002344,7]
[387806395,1758883857926,-195.58177,0.0002344,7]
[387806396,1758883857935,-195.58177,0.0002344,7]
[387806397,1758883857944,-195.58177,0.0002344,7]
[387806398,1758883857953,-195.58177,0.0002344,7]
[387806399,1758883857963,-151.0,0.0002344,7]
[387806400,1758883857972,-151.0,0.0002344,7]
[387806401,1758883857981,-151.0,0.0002344,7]
[387806402,1758883857990,-151.0,0.0002344,7]
[387806403,1758883857999,-221.193096,0.0002344,7]
[387806404,1758883858010,-151.0,0.0002344,7]
[387806405,1758883858019,-151.0,0.0002344,7]
[387806406,1758883858029,-221.193096,0.0002344,7]
[387806407,1758883858038,-288.577942,0.0002344,7]
[387806408,1758883858047,-221.193096,0.0002344,7]
[387806409,1758883858056,-151.0,0.0002344,7]
[387806410,1758883858065,-221.193096,0.0002344,7]
[387806411,1758883858075,-151.0,0.0002344,7]
[387806412,1758883858084,-151.0,0.0002344,7]
[387806413,1758883858093,-151.0,0.0002344,7]
[387806414,1758883858102,-223.18506,0.0002344,7]
[387806415,1758883858112,-151.0,0.0002344,7]
[387806416,1758883858121,-151.0,0.0002344,7]
[387806417,1758883858130,-274.67199,0.0002344,7]
[387806418,1758883858140,-151.0,0.0002344,7]
[387806419,1758883858149,-274.67199,0.0002344,7]
[387806420,1758883858158,-151.0,0.0002344,7]
[387806421,1758883858167,-274.67199,0.0002344,7]
[387806422,1758883858177,-151.0,0.0002344,7]
[387806423,1758883858187,-274.67199,0.0002344,7]
[387806424,1758883858196,-151.0,0.0002344,7]
[387806425,1758883858206,-151.0,0.0002344,7]
[387806426,1758883858215,-151.0,0.0002344,7]
[387806427,1758883858225,-151.0,0.0002344,7]
[387806428,1758883858235,-151.0,0.0002344,7]
[387806429,1758883858244,-151.0,0.0002344,7]
[387806430,1758883858253,-151.0,0.0002344,7]
[387806431,1758883858263,-151.0,0.0002344,7]
[387806432,1758883858272,-151.0,0.0002344,7]
[387806433,1758883858280,-151.0,0.0002344,7]
[387806434,1758883858290,-151.0,0.0002344,7]
[387806435,1758883858299,-151.0,0.0002344,7]
[387806436,1758883858309,-151.0,0.0002344,7]
[387806437,1758883858318,-151.0,0.0002344,7]
[387806438,1758883858328,-210.286139,0.0002344,7]
[387806439,1758883858338,-151.0,0.0002344,7]
[387806440,1758883858348,-210.286139,0.0002344,7]
[387806441,1758883858357,-210.286139,0.0002344,7]
[387806442,1758883858366,-151.0,0.0002344,7]
[387806443,1758883858375,-210.286139,0.0002344,7]
[387806444,1758883858385,-151.0,0.0002344,7]
[387806445,1758883858394,-151.0,0.0002344,7]
[387806446,1758883858404,-189.895296,0.0002344,7]
[387806447,1758883858413,-151.0,0.0002344,7]
[387806448,1758883858423,-151.0,0.0002344,7]
[387806449,1758883858432,-151.0,0.0002344,7]
[387806450,1758883858664,-151.0,0.0002344,7]
[387806451,1758883858676,-151.0,0.0002344,7]
[387806452,1758883858686,-151.114977,0.0002344,7]
[387806453,1758883858695,-151.0,0.0002344,7]
[387806454,1758883858706,-223.781279,0.0002344,7]
[387806455,1758883858715,-151.114977,0.0002344,7]
[387806456,1758883858724,-151.114977,0.0002344,7]
[387806457,1758883858734,-151.114977,0.0002344,7]
[387806458,1758883858744,-151.0,0.0002344,7]
[387806459,1758883858753,-151.0,0.0002344,7]
[387806460,1758883858762,-151.0,0.0002344,7]
[387806461,1758883858772,-151.0,0.0002344,7]
[387806462,1758883858781,-151.0,0.0002344,7]
[387806463,1758883858790,-243.487842,0.0002344,7]
[387806464,1758883858799,-1733.354362,0.0002344,7]
[387806465,1758883858808,-1733.354362,0.0002344,7]
[387806466,1758883858817,-1733.354362,0.0002344,7]
[387806467,1758883858827,-1733.354362,0.0002344,7]
[387806468,1758883858836,-214.025341,0.0002344,7]
[387806469,1758883858845,-1643.701944,0.0002344,7]
[387806470,1758883858854,-151.0,0.0002344,7]
[387806471,1758883858864,-151.0,0.0002344,7]
[387806472,1758883858873,-151.0,0.0002344,7]
[387806473,1758883858882,-1643.701944,0.0002344,7]
[387806474,1758883858892,-151.0,0.0002344,7]
[387806475,1758883858901,-151.0,0.0002344,7]
[387806476,1758883858910,-151.0,0.0002344,7]
[387806477,1758883858920,-1643.701944,0.0002344,7]
[387806478,1758883858929,-151.0,0.0002344,7]
[387806479,1758883858938,-151.0,0.0002344,7]
[387806480,1758883858948,-280.263411,0.0002344,7]
[387806481,1758883858957,-1643.701944,0.0002344,7]
[387806482,1758883858966,-151.0,0.0002344,7]
[387806483,1758883858976,-447.81563,0.0002344,7]
[387806484,1758883858985,-251.915349,0.0002344,7]
[387806485,1758883858994,-447.81563,0.0002344,7]
[387806486,1758883859004,-642.610581,0.0002344,7]
[387806487,1758883859014,-251.915349,0.0002344,7]
[387806488,1758883859023,-447.81563,0.0002344,7]
[387806489,1758883859032,-642.610581,0.0002344,7]
[387806490,1758883859042,-251.915349,0.0002344,7]
[387806491,1758883859051,-447.81563,0.0002344,7]
[387806492,1758883859061,-642.610581,0.0002344,7]
[387806493,1758883859070,-151.0,0.0002344,7]
[387806494,1758883859080,-251.915349,0.0002344,7]
[387806495,1758883859090,-642.610581,0.0002344,7]
[387806496,1758883859099,-151.0,0.0002344,7]
[387806497,1758883859109,-151.0,0.0002344,7]
[387806498,1758883859119,-211.258714,0.0002344,7]
[387806499,1758883859130,-211.258714,0.0002344,7]
[387806500,1758883859140,-211.258714,0.0002344,7]
[387806501,1758883859154,-211.258714,0.0002344,7]
[387806502,1758883859163,-151.0,0.0002344,7]
[387806503,1758883859172,-151.0,0.0002344,7]
[387806504,1758883859181,-151.0,0.0002344,7]
[387806505,1758883859190,-151.0,0.0002344,7]
[387806506,1758883859199,-151.0,0.0002344,7]
[387806507,1758883859209,-5182.529928,0.0002344,7]
[387806508,1758883859218,-5182.529928,0.0002344,7]
[387806509,1758883859227,-5182.529928,0.0002344,7]
[387806510,1758883859236,-1227.273562,0.0002344,7]
[387806511,1758883859245,-151.0,0.0002344,7]
[387806512,1758883859254,-151.0,0.0002344,7]
[387806513,1758883859263,-151.0,0.0002344,7]
[387806514,1758883859273,-5182.529928,0.0002344,7]
[387806515,1758883859282,-151.0,0.0002344,7]
[387806516,1758883859291,-1227.273562,0.0002344,7]
[387806517,1758883859300,-151.0,0.0002344,7]
[387806518,1758883859309,-444.787476,0.0002344,7]
[387806519,1758883859318,-151.0,0.0002344,7]
[387806520,1758883859328,-151.0,0.0002344,7]
[387806521,1758883859337,-1227.273562,0.0002344,7]
[387806522,1758883859347,-444.787476,0.0002344,7]
[387806523,1758883859356,-1227.273562,0.0002344,7]
[387806524,1758883859364,-151.0,0.0002344,7]
[387806525,1758883859374,-151.0,0.0002344,7]
[387806526,1758883859383,-151.0,0.0002344,7]
[387806527,1758883859392,-444.787476,0.0002344,7]
[387806528,1758883859401,-151.0,0.0002344,7]
[387806529,1758883859413,-151.0,0.0002344,7]
[387806530,1758883859422,-151.0,0.0002344,7]
[387806531,1758883859431,-444.787476,0.0002344,7]
[387806532,1758883859440,-151.0,0.0002344,7]
[387806533,1758883859449,-151.0,0.0002344,7]
[387806534,1758883859458,-151.0,0.0002344,7]
[387806535,1758883859467,-151.0,0.0002344,7]
[387806536,1758883859476,-151.0,0.0002344,7]
[387806537,1758883859486,-151.0,0.0002344,7]
[387806538,1758883859495,-151.0,0.0002344,7]
[387806539,1758883859504,-151.0,0.0002344,7]
[387806540,1758883859513,-151.0,0.0002344,7]
[387806541,1758883859522,-213.069973,0.0002344,7]
[387806542,1758883859531,-151.0,0.0002344,7]
[387806543,1758883859540,-151.0,0.0002344,7]
[387806544,1758883859549,-1862.452135,0.0002344,7]
[387806545,1758883859558,-151.0,0.0002344,7]
[387806546,1758883859567,-151.0,0.0002344,7]
[387806547,1758883859577,-1862.452135,0.0002344,7]
[387806548,1758883859586,-151.0,0.0002344,7]
[387806549,1758883859595,-1862.452135,0.0002344,7]
[387806550,1758883859604,-1862.452135,0.0002344,7]
[387806551,1758883859613,-273.743063,0.0002344,7]
[387806552,1758883859624,-273.743063,0.0002344,7]
[387806553,1758883859633,-273.743063,0.0002344,7]
[387806554,1758883859643,-273.743063,0.0002344,7]
[387806555,1758883859652,-309.0,0.00023452,2]
[387806556,1758883859664,-221.66,0.00023455,2]
[387806557,1758883859673,-500.0,0.00023455,2]
[387806558,1758883859683,-500.0,0.00023455,2]
[387806559,1758883859692,-500.0,0.00023455,2]
[387806560,1758883859701,-500.0,0.00023455,2]
[387806561,1758883859714,-500.0,0.00023455,2]
[387806562,1758883859723,-500.0,0.00023455,2]
[387806563,1758883859732,-500.0,0.00023455,2]
[387806564,1758883859742,-500.5248516,0.00023455,2]
[387806565,1758883859751,-302.22387009,0.00023455,2]
[387806566,1758883859761,-500.0,0.00023455,2]
[387806567,1758883859770,-500.0,0.00023455,2]
[387806568,1758883859779,-500.0,0.00023455,2]
[387806569,1758883859788,-164.33939875,0.00023455,2]
[387806570,1758883859798,-500.0,0.00023455,2]
[387806571,1758883859807,-216.88813396,0.00023455,2]
[387806572,1758883859816,-500.0,0.00023455,2]
[387806573,1758883859826,-461.51255061,0.00023455,2]
[387806574,1758883859835,-255.64095776,0.00023455,2]
[387806575,1758883859844,-500.0,0.00023455,2]
[387806576,1758883859854,-500.0,0.00023455,2]
[387806577,1758883859862,-500.0,0.00023455,2]
[387806578,1758883859871,-500.0,0.00023455,2]
[387806579,1758883859880,-182.04,0.00023486,2]
[387806580,1758883859889,-664.15,0.000235,7]
[387806581,1758883859898,-200.0,0.000235,2]
[387806582,1758883859907,-200.0,0.0002351,7]
[387806583,1758883859917,-182.04,0.00023551,2]
[387806584,1758883859926,-558.0,0.00023561,2]
[387806585,1758883859936,-2595.0,0.00023561,2]
[387806586,1758883859945,-1963.0,0.00023561,2]
[387806587,1758883859954,-571.0,0.00023561,2]
[387806588,1758883859963,-301.30874752,0.00023562,2]
[387806589,1758883859972,-379.43,0.00023564,2]
[387806590,1758883859982,-1000.0,0.00023568,2]
[387806591,1758883859992,-509.84960925,0.00023616,2]
[387806592,1758883860002,-502.77732773,0.00023616,2]
[387806593,1758883860011,-2000.0,0.00023616,2]
[387806594,1758883860022,-2000.0,0.00023616,2]
[387806595,1758883860032,-2000.0,0.00023616,2]
[387806596,1758883860042,-20000.0,0.0002363,3]
[387806597,1758883860052,-150.0,0.0002363,2]
[387806598,1758883860062,-2292.28496558,0.00023636,2]
[387806599,1758883860071,-600.0,0.00023754,2]
[387806600,1758883860081,-8886.93658166,0.0002376,2]
[387806601,1758883860091,-4000.0,0.00023808,2]
[387806602,1758883860100,-558.0,0.00023835,2]
[387806603,1758883860109,-2595.0,0.00023835,2]
[387806604,1758883860119,-1963.0,0.00023835,2]
[387806605,1758883860128,-571.0,0.00023835,2]
[387806606,1758883860138,-378.89,0.00023835,2]
[387806607,1758883860147,-2212.04,0.00023836,2]
[387806608,1758883860157,-200.0,0.0002391,7]
[387806609,1758883860167,-110106.3824018,0.0002396,2]
[387806610,1758883860176,-1001.55,0.00023962,2]
[387806611,1758883860186,-806.23,0.00023962,2]
[387806612,1758883860196,-806.23,0.00023962,2]
[387806613,1758883860206,-806.23,0.00023962,2]
[387806614,1758883860216,-806.23,0.00023962,2]
[387806615,1758883860226,-806.23,0.00023962,2]
[387806616,1758883860235,-995.71,0.0002398,2]